Cogmind - Beta 16.1 @@@ ROGUE MODE // 2026.02.12 @ 15:34:15 Player: Megaknight51 Result: Destroyed by C-57 Dissector with Dual-blade Saw Performance ------------- Evolutions (8) 4000 Regions Visited (14) 2800 Robots Destroyed (61) 305 Value Destroyed (2407) 2407 Prototype IDs (25) 500 Alien Tech Used (1) 200 Bonus (1039) 1039 TOTAL SCORE: 11251 Bonus ------- High Alert Combat Kills 16 Follower Combat Kills 1541 Registered with UFD 300 Scanned by Researcher 500 Friendly Fire -1318 Cogmind --------- Core Integrity 0/1450 Matter 204/300 Energy 98/100 System Corruption 2% Temperature Cool (0) Movement Core (50) Location -2/Research Parts ------- > --- POWER (3) -------- (None) > --- PROPULSION (6) --- (None) > --- UTILITY (10) ----- (None) > --- WEAPON (4) ------- (None) > --- INVENTORY (5) ---- Quantum Reactor Compact Matter Pod (150) Matter Compressor (250) Phase Armor Peak State ------------ > --- POWER ------------ Micro Antimatter Reactor > --- PROPULSION ------- Improved Antigrav System Antigrav Array Antigrav Array > --- UTILITY ---------- Experimental Power Amplifier Advanced Heat Sink Advanced Sensor Array Advanced Signal Interpreter Advanced Target Analyzer Advanced Target Analyzer Transmission Jammer Phase Armor Hacking Suite > --- WEAPON ----------- Gamma Rifle Gamma Rifle Dispersion Rifle Hardcell Cannon > --- INVENTORY -------- Antigrav Array Compact Matter Pod Matter Compressor Improved Component Analysis Suite [Rating: 153] Favorites ----------- Power Meta Core Engine Light Ion Engine Power Core Meta Core Reactor Light Antimatter Reactor Propulsion Light Treads Treads Light Treads Hover Unit Antigrav Array Flight Unit Impulse Thruster Array Utility High-capacity Storage Unit Device V3-11A's Pendant Storage High-capacity Storage Unit Processor Makeshift Terrain Scan Processor Hackware System Shield Protection Makeshift Light Armor Plating Artifact Phase Armor Weapon Makeshift Shrapnel Gun Energy Gun Heavy Laser Energy Cannon Phase Cannon Ballistic Gun Makeshift Shrapnel Gun Ballistic Cannon Light Cannon Launcher Grenade Launcher Impact Weapon Powered Hammer Piercing Weapon Makeshift Spear Build | -11 -10 -10 -7 -7 -5 -5 -5 -4 -4 -4 -3 -3 -3 -2 ------- Run | Yrd Mat Sub Rec Scr Fac Upp Upp Fac Upp Upp Res Qua Frg Res Slots Evolved 16 | . . . . . 10 . . 2 . . 2 . . 2 Power 2 | . . . . . 1 . . . . . . . . 1 Propulsion 4 | . . . . . 1 . . . . . 2 . . 1 Utility 8 | . . . . . 7 . . 1 . . . . . . Weapon 2 | . . . . . 1 . . 1 . . . . . . Parts Attached 113 | 6 7 8 . 5 17 5 1 24 10 . 2 21 . 7 Power 17 | 1 1 2 . . 2 1 . 3 2 . . 2 . 3 Engine 5 | 1 1 1 . . 2 . . . . . . . . . Core 4 | . . 1 . . . 1 . 1 1 . . . . . Reactor 8 | . . . . . . . . 2 1 . . 2 . 3 Propulsion 28 | 2 3 1 . 4 2 . . 6 3 . 1 3 . 3 Treads 15 | 2 3 1 . 4 2 . . 3 . . . . . . Leg . | . . . . . . . . . . . . . . . Wheel . | . . . . . . . . . . . . . . . Hover 10 | . . . . . . . . 3 3 . 1 3 . . Flight 3 | . . . . . . . . . . . . . . 3 Utility 45 | 1 2 2 . 1 10 3 1 10 1 . 1 12 . 1 Device 17 | . . 1 . . 4 . 1 3 . . 1 6 . 1 Storage 3 | 1 1 . . . 1 . . . . . . . . . Processor 8 | . . . . . 3 1 . . . . . 4 . . Hackware 10 | . . . . . 1 . . 7 1 . . 1 . . Protection 6 | . 1 1 . 1 1 2 . . . . . . . . Artifact 1 | . . . . . . . . . . . . 1 . . Weapon 23 | 2 1 3 . . 3 1 . 5 4 . . 4 . . Energy Gun 8 | 1 . . . . . . . 1 3 . . 3 . . Energy Cannon 1 | . . . . . . . . 1 . . . . . . Ballistic Gun 6 | 1 . 1 . . 1 . . 3 . . . . . . Ballistic Cannon 3 | . . 1 . . 1 . . . . . . 1 . . Launcher 3 | . 1 . . . 1 1 . . . . . . . . Special Weapon . | . . . . . . . . . . . . . . . Impact Weapon 1 | . . . . . . . . . 1 . . . . . Slashing Weapon . | . . . . . . . . . . . . . . . Piercing Weapon 1 | . . 1 . . . . . . . . . . . . Special Melee Weapon . | . . . . . . . . . . . . . . . Unidentified Prototypes 7 | . . 1 . . 1 1 1 . . . 1 2 . . Corrupted Parts 3 | . . . . . . . . 3 . . . . . . System Corruption 19 | . . . . . . . . 19 . . . . . . Parts Lost 62 | . 1 . . . 6 9 . 22 3 7 . 9 2 3 Power 9 | . . . . . 1 1 . 4 . . . . 1 2 Propulsion 16 | . . . . . 2 2 . 4 . 3 . 3 1 1 Utility 20 | . . . . . 2 4 . 8 2 2 . 2 . . Weapon 17 | . 1 . . . 1 2 . 6 1 2 . 4 . . Highest Loss Streak 10 | . 1 . . . 5 5 . 10 7 7 . 8 2 3 To Critical Strikes 2 | . . . . . . . . 1 . 1 . . . . Average Backups 12 | . 6 16 17 17 9 7 7 8 4 4 4 4 4 4 Power . | . 1 1 1 1 . . . . . . . . . . Propulsion 2 | . 3 5 3 2 1 . . . . . . . . . Utility 6 | . 1 6 8 11 6 6 6 6 4 4 4 4 4 3 Weapon 2 | . 1 3 4 3 2 1 1 1 . . . . . . Tool/Special . | . . . . . . . . . . . . . . . Unused Backups 13 | . 1 1 2 2 2 . . 2 . . . 1 . 2 Power . | . . . . . . . . . . . . . . . Propulsion 3 | . . . 2 . . . . . . . . 1 . . Utility 7 | . 1 . . . 2 . . 2 . . . . . 2 Weapon 3 | . . 1 . 2 . . . . . . . . . . Tool/Special . | . . . . . . . . . . . . . . . Average Slot Usage (%) 77 | . 92 88 80 85 89 72 56 77 48 29 3 52 35 11 Engine 3 | . 14 7 . . 3 . . . . . . . . . Core 5 | . . 4 10 10 5 8 5 4 3 2 . . . . Treads 17 | . 28 24 20 25 18 11 5 7 . . . . . . Device 8 | . . 10 10 3 12 5 9 13 5 2 . 11 14 . Storage 8 | . 14 12 10 10 6 5 5 4 . . . . . . Processor 3 | . . . . . 9 9 5 5 . . . 14 9 . Hackware 2 | . . . . . 4 5 5 13 13 7 . 1 4 . Protection 7 | . 7 4 10 15 9 11 5 3 . . . . . . Energy Gun 1 | . 10 . . . . . . 6 6 5 . 4 . . Ballistic Gun 7 | . 14 11 10 10 8 1 . 3 . . . . . . Ballistic Cannon 3 | . . . 9 10 9 3 . . . . . 2 . . Launcher 1 | . 2 . . . 1 7 11 3 . . . . . . Piercing Weapon 3 | . . 11 . . . 1 . . . . . . . . Peak Build Rating 153 | 6 8 34 34 37 81 81 52 109 69 69 27 153 67 79 Average Rating 42 | 4 6 24 31 34 72 60 45 80 54 31 15 102 54 34 On Entrance 30 | . 6 8 34 32 37 60 40 52 31 69 2 19 67 4 Avg Prop Armor Cover (%) 10 | . . . . . . . . 13 . . . 8 . . Naked Turns 168 | . . . . . . . . . . 41 19 . 3 105 Heaviest Build 109 | 12 48 55 56 62 95 109 69 93 31 31 . 84 16 60 Greatest Support 94 | 40 40 40 40 66 94 69 23 54 33 33 26 68 28 48 Greatest Overweight (x) 25 | . 1 1 1 1 1 2 2 25 3 . . 17 . 19 Average Overweight (x) . | . . 1 1 . . 1 2 1 . . . . . . Largest Inventory Capacity 20 | 8 20 20 20 20 20 20 20 20 5 5 5 5 5 5 Average Capacity 18 | 7 18 20 20 20 20 20 20 18 5 5 5 5 5 5 Most Carried 20 | 1 12 20 20 20 19 10 7 10 4 5 5 5 5 5 Average Carried 13 | . 6 18 19 19 10 8 7 8 4 4 4 4 5 5 Final Capacity 20 | 8 20 20 20 20 20 20 20 5 5 5 5 5 5 5 Final Carried 20 | 1 12 20 20 20 6 7 7 4 4 4 5 5 5 5 Scrap Suit Usage (%) 23 | . . . . . 99 100 100 14 . . . . . . Parts Cannibalized 2 | . . . . . 1 . . 1 . . . . . . Class Distribution -------------------- 63% | Mutant 13% | Derelict-Mutant 6% | Tank 3% | Hacker-Tank 3% | Derelict-Tank Dominant Class ---------------- Mutant | -10/Materials Mutant | -10/Subcaves Mutant | -7/Recycling Mutant | -7/Scraptown Derelict-Skirmisher | -5/Factory Mutant | -5/Upper Caves Mutant | -5/Upper Caves Hacker-Tank | -4/Factory Scavenger-Mutant | -4/Upper Caves Mutant | -4/Upper Caves Mutant | -3/Research Mutant | -3/Quarantine Mutant | -3/Protoforge Mutant | -2/Research Resources | -11 -10 -10 -7 -7 -5 -5 -5 -4 -4 -4 -3 -3 -3 -2 ----------- Run | Yrd Mat Sub Rec Scr Fac Upp Upp Fac Upp Upp Res Qua Frg Res Matter Collected 4436 | 210 423 671 25 29 588 939 87 920 115 . . 429 . . Remotely . | . . . . . . . . . . . . . . . Salvage Created 2572 | . 529 42 . . 486 317 . 622 171 . . 405 . . Parts 126 | . 31 . . . 25 11 . 29 11 . . 19 . . Haulers Intercepted 2 | . 1 . . . 1 . . . . . . . . . Recyclers Shooed 8 | . . . 1 . . . . 6 . . . 1 . . Parts Field Recycled . | . . . . . . . . . . . . . . . Retrieved Matter . | . . . . . . . . . . . . . . . Parts Self-Destructed 42 | . . 24 . . . 11 6 . . 1 . . . . Prevented 10 | . . . . . . . 3 . 4 3 . . . . Parts Restored . | . . . . . . . . . . . . . . . Kills | -11 -10 -10 -7 -7 -5 -5 -5 -4 -4 -4 -3 -3 -3 -2 ------- Run | Yrd Mat Sub Rec Scr Fac Upp Upp Fac Upp Upp Res Qua Frg Res Combat Hostiles Destroyed 44 | . 12 1 . . 8 12 . 5 . . . 6 . . Guns 14 | . 8 . . . 3 1 . 2 . . . . . . Cannons 13 | . . 1 . . 3 1 . 2 . . . 6 . . AOE 17 | . 4 . . . 2 10 . 1 . . . . . . Classes Destroyed 12 | . 6 1 . . 3 2 . . . . . . . . Worker 2 | . 1 . . . . . . 1 . . . . . . Builder 3 | . . . . . 2 . . 1 . . . . . . Tunneler 1 | . 1 . . . . . . . . . . . . . Hauler 2 | . 1 . . . 1 . . . . . . . . . Recycler 5 | . 2 . . . . . . 2 . . . 1 . . Swarmer 6 | . 3 . . . . 3 . . . . . . . . Grunt 26 | . 9 . . . 4 7 . 3 . . . 3 . . Sentry 1 | . . . . . . 1 . . . . . . . . Hunter 4 | . . . . . 2 . . 2 . . . . . . Programmer 5 | . . . . . 2 . . . . . . 3 . . Behemoth 1 | . . . . . . 1 . . . . . . . . Subdweller 2 | . . 1 . . 1 . . . . . . . . . Wizard 3 | . . . . . . . . . 3 . . . . . Best Kill Streak 8 | . 8 1 . . 6 7 . 3 . . . 3 . . Combat Bots Only 7 | . 3 1 . . 5 7 . 2 . . . 3 . . Max Kills in Single Turn 5 | . 5 1 . . 2 3 . 1 1 . . 1 . . Gunslinging . | . . . . . . . . . . . . . . . Exploded 3 | . 3 . . . 1 3 . 1 . . . . . . Melee . | . . . . . . . . . . . . . . . Uniques/NPCs Destroyed . | . . . . . . . . . . . . . . . Combat | -11 -10 -10 -7 -7 -5 -5 -5 -4 -4 -4 -3 -3 -3 -2 -------- Run | Yrd Mat Sub Rec Scr Fac Upp Upp Fac Upp Upp Res Qua Frg Res Hostile Shots Fired 860 | . 45 6 9 . 113 63 . 187 16 57 42 140 46 136 Missed 311 | . 17 3 5 . 17 17 . 67 7 11 18 57 28 64 Hits 549 | . 28 3 4 . 96 46 . 120 9 46 24 83 18 72 Melee 17 | . . . . . . . . . . . . . . 17 Projectile 532 | . 28 3 4 . 96 46 . 120 9 46 24 83 18 55 AOE 3 | . . . . . . . . . . . . . . 3 Critical Strikes 31 | . . . . . 4 3 . 11 . 1 . 2 . 10 Actively Blocked 8 | . . . . . . . . 8 . . . . . . Damage Taken 11685 | . 462 110 29 . 1644 1333 . 2510 218 694 467 1760 369 2089 Core 3401 | . 75 49 11 . 121 76 . 618 88 257 307 189 138 1472 Absorbed by Shields . | . . . . . . . . . . . . . . . Redirected to Core 100 | . . . . . . . . . . . . 100 . . Redirected to Shielding 12 | . 7 5 . . . . . . . . . . . . Regen/Repaired (Parts) 12 | . . . . . 2 . . 10 . . . . . . Core Remaining (%) 58 | 100 . . . 46 . . 80 . . 16 . . 51 . Volleys Fired 177 | . 32 6 . . 25 25 . 40 10 6 . 33 . . Largest 4 | . 2 2 . . 4 4 . 4 2 2 . 1 . . Hottest 265 | . 70 54 . . 131 137 . 265 120 120 . 55 . . Shots Fired 383 | . 63 11 1 . 96 73 . 77 18 11 . 33 . . Gun 209 | . 55 9 . . 46 11 . 59 18 11 . . . . Cannon 121 | . . 2 1 . 47 21 . 17 . . . 33 . . Launcher 53 | . 8 . . . 3 41 . 1 . . . . . . Special . | . . . . . . . . . . . . . . . Kinetic 233 | . 33 11 1 . 93 32 . 30 . . . 33 . . Thermal 68 | . 22 . . . . . . 46 . . . . . . Explosive 53 | . 8 . . . 3 41 . 1 . . . . . . Electromagnetic 29 | . . . . . . . . . 18 11 . . . . Robot Hit Streak 8 | . 8 5 3 . 6 8 . 5 6 5 . 8 . . Robot Miss Streak 10 | . 3 2 . . 10 4 . 5 4 4 . 2 . . Penetration Max 1 | . . . . . . . . 1 . . . . . . Secondary Targets 1 | . . . . . . . . 1 . . . . . . Max Gunslinging Chain 1 | . . . . . . . . 1 . . . . . . Shots Hit Robots 248 | . 42 10 1 . 61 38 . 40 21 9 . 26 . . Core Hits 170 | 1 28 1 . . 46 44 . 24 10 6 . 10 . . Critical Kills . | . . . . . . . . . . . . . . . Critical Parts Destroyed 2 | . . . . . 1 . . . 1 . . . . . Critical Strikes 10 | . 3 . . . 3 . . . 1 . . 3 . . Burn 3 | . 3 . . . . . . . . . . . . . Destroy 1 | . . . . . 1 . . . . . . . . . Blast 5 | . . . . . 2 . . . . . . 3 . . Smash 1 | . . . . . . . . . 1 . . . . . Melee Attacks 70 | . . 62 . . . 1 . . 7 . . . . . Impact 7 | . . . . . . . . . 7 . . . . . Slashing . | . . . . . . . . . . . . . . . Piercing 63 | . . 62 . . . 1 . . . . . . . . Sneak Attacks 9 | . . 2 . . . . . . 7 . . . . . Combat Hostiles . | . . . . . . . . . . . . . . . Follow-up Attacks . | . . . . . . . . . . . . . . . Damage Inflicted 7464 | 9 1040 168 27 . 1164 1895 . 1321 713 29 . 1080 16 2 Guns 2034 | . 461 60 . . 442 144 . 856 42 29 . . . . Cannons 2171 | . . 38 17 . 455 238 . 343 . . . 1080 . . Explosions 2573 | . 575 . . . 267 1513 . 107 111 . . . . . Melee 630 | . . 70 . . . . . . 560 . . . . . Ramming 56 | 9 4 . 10 . . . . 15 . . . . 16 2 Kinetic 3156 | . 245 98 17 . 897 382 . 437 . . . 1080 . . Thermal 1089 | . 216 . . . . . . 762 111 . . . . . Explosive 2462 | . 575 . . . 267 1513 . 107 . . . . . . Electromagnetic 71 | . . . . . . . . . 42 29 . . . . Impact 560 | . . . . . . . . . 560 . . . . . Slashing . | . . . . . . . . . . . . . . . Piercing 70 | . . 70 . . . . . . . . . . . . Highest Corruption 32 | . 2 2 2 . 10 10 10 30 30 32 . 6 7 2 Average Corruption 6 | . 2 2 2 . 9 10 10 13 30 31 . 2 6 1 Corruption Purged . | . . . . . . . . . . . . . . . Corruption Blocked . | . . . . . . . . . . . . . . . Effects 314 | . 10 69 22 . 6 112 12 51 20 5 . 6 1 . Message Errors 69 | . 3 19 5 . . 28 4 7 2 1 . . . . Matter Fused 73 | . 2 15 4 . 1 23 2 15 9 1 . 1 . . Heat Flow Errors 41 | . . 10 5 . . 18 . 6 1 . . 1 . . Energy Discharges 29 | . . 4 3 . . 12 1 3 6 . . . . . Parts Rejected 6 | . 2 . . . 1 . . . . 1 . 1 1 . Parts Fused 6 | . . 1 1 . . 1 2 1 . . . . . . Data Loss (minor) 41 | . 1 13 3 . 2 15 2 3 1 . . 1 . . Data Loss (major) 13 | . 1 2 . . 1 5 1 2 . . . 1 . . Misfires 14 | . 1 3 1 . 1 5 . 3 . . . . . . Alerts 5 | . . 2 . . . 2 . . . . . 1 . . Misdirections 5 | . . . . . . . . 4 . 1 . . . . Weapon Failures 12 | . . . . . . 3 . 7 1 1 . . . . Overload Shots . | . . . . . . . . . . . . . . . Overflow Damage 356 | . 56 . . . . 20 . 1 247 . . 32 . . Projectiles 33 | . . . . . . . . 1 . . . 32 . . Explosions 99 | . 56 . . . . 20 . . 23 . . . . . Melee 224 | . . . . . . . . . 224 . . . . . Knockbacks 25 | . . . 1 . 5 1 . . 2 . . 16 . . Impact 2 | . . . . . . . . . 2 . . . . . Kinetic 23 | . . . 1 . 5 1 . . . . . 16 . . Secondary . | . . . . . . . . . . . . . . . Self-Inflicted Damage 475 | . 136 . . . . 251 . 6 74 . . . 7 1 Shots 15 | . 4 . . . . 10 . . 1 . . . . . Rammed 16 | 4 2 . 4 . . . . 1 . . . 1 2 2 Targets Rammed 17 | 4 2 . 4 . . . . 2 . . . 1 2 2 Kicked . | . . . . . . . . . . . . . . . Crushed 1 | . . . . . . . . 1 . . . . . . Highest Temperature 595 | . 84 227 228 . 532 384 . 595 390 262 . 140 . 4 Average Temperature 147 | . 27 102 95 . 230 124 . 204 158 136 . 102 . 4 Received Heat Transfer 1351 | . 162 15 . . 274 300 . 63 . . 63 267 117 90 Effects 41 | . . . . . 13 2 . 21 4 1 . . . . Shutdowns 15 | . . . . . 6 1 . 7 1 . . . . . Energy Bleed 4 | . . . . . . 1 . 1 1 1 . . . . Interference 4 | . . . . . 2 . . . 2 . . . . . Matter Decay 6 | . . . . . 2 . . 4 . . . . . . Short Circuit 2 | . . . . . 2 . . . . . . . . . Damage (minor) 1 | . . . . . 1 . . . . . . . . . Damage (major) 9 | . . . . . . . . 9 . . . . . . Siege Activations . | . . . . . . . . . . . . . . . Martial Activations . | . . . . . . . . . . . . . . . Shielding Activations . | . . . . . . . . . . . . . . . Robots Disrupted . | . . . . . . . . . . . . . . . Combat Hostiles . | . . . . . . . . . . . . . . . Robots Corrupted . | . . . . . . . . . . . . . . . Combat Hostiles . | . . . . . . . . . . . . . . . Parts Fried 1 | . . . . . . . . 1 . . . . . . Impact Corruptions 9 | . . . . . . . . . 9 . . . . . Robots Melted . | . . . . . . . . . . . . . . . Combat Hostiles . | . . . . . . . . . . . . . . . Parts Melted 2 | . 1 . . . . . . . 1 . . . . . Heat Transferred 2024 | . 851 . . . . . . 1073 100 . . . . . Parts Sabotaged . | . . . . . . . . . . . . . . . Parts Stolen . | . . . . . . . . . . . . . . . Parts Stripped . | . . . . . . . . . . . . . . . Power Chain Reactions 1 | . . . . . . . . . 1 . . . . . Alert | -11 -10 -10 -7 -7 -5 -5 -5 -4 -4 -4 -3 -3 -3 -2 ------- Run | Yrd Mat Sub Rec Scr Fac Upp Upp Fac Upp Upp Res Qua Frg Res Maximum Alert Level 2 | . . . . . . . . 2 . . . . . 1 Low Security (%) 94 | 100 100 . 100 . 100 . . 79 . . 100 100 100 90 Level 1 4 | . . . . . . . . 18 . . . . . 9 Level 2 . | . . . . . . . . 2 . . . . . . Level 3 . | . . . . . . . . . . . . . . . Level 4 . | . . . . . . . . . . . . . . . Level 5 . | . . . . . . . . . . . . . . . High Security . | . . . . . . . . . . . . . . . Max Security . | . . . . . . . . . . . . . . . Peak Influence 415 | . 174 . 97 . 119 . . 415 . . 50 93 51 336 Initial 97 | . . . 97 . . . . 56 . . . 22 51 6 Average 41 | . 51 . 10 . 24 . . 91 . . 6 18 36 42 Influence Increases 3488 | . 391 277 112 . 252 350 131 1029 45 22 60 399 . 420 Destroy 0b10 Robot/C 1640 | . 240 180 80 . 180 240 80 480 20 20 . 120 . . Destroy 0b10 Robot/NC 150 | . 25 . 5 . 15 . . 100 . . . 5 . . Destroy Leader 220 | . 52 . . . 32 20 10 86 10 . . 10 . . Allied During Kill 384 | . . 97 26 . 3 . 41 215 . 2 . . . . Successful Hack 18 | . . . . . . . . . . . . 18 . . Disable Machine 75 | . 30 . . . . . . 15 . . . 30 . . Destroy Structure 131 | . 44 . 1 . 22 . . 58 . . . 6 . . Partial Spotted 15 | . . . . . . . . . . . . . . 15 Lose Combat Pursuer 855 | . . . . . . 90 . 75 15 . 60 210 . 405 Influence Decreases 3152 | . 391 74 315 . 191 264 187 824 341 20 22 346 82 95 Entered New Map 371 | . . . 106 . . 24 29 35 110 . 2 18 42 5 Time Decay 2052 | . 381 34 209 . 147 184 158 382 161 20 20 276 20 60 Lost Part 460 | . 10 . . . 44 56 . 218 30 . . 52 20 30 Lost Ally 269 | . . 40 . . . . . 189 40 . . . . . Squads Dispatched 25 | . 2 . . . 1 . . 10 . . 1 6 1 4 Investigation . | . . . . . . . . . . . . . . . Extermination 9 | . . . . . 1 . . 3 . . . 3 . 2 Reinforcement 16 | . 2 . . . . . . 7 . . 1 3 1 2 Assault . | . . . . . . . . . . . . . . . Garrison . | . . . . . . . . . . . . . . . Intercept . | . . . . . . . . . . . . . . . Searches Triggered . | . . . . . . . . . . . . . . . Construction Impeded 4 | . . . . . . . . 4 . . . . . . Haulers Reinforced 1 | . . . . . . . . 1 . . . . . . Active Scanning Responses . | . . . . . . . . . . . . . . . Cargo Convoy Interrupts . | . . . . . . . . . . . . . . . Stealth | -11 -10 -10 -7 -7 -5 -5 -5 -4 -4 -4 -3 -3 -3 -2 --------- Run | Yrd Mat Sub Rec Scr Fac Upp Upp Fac Upp Upp Res Qua Frg Res Distress Signals 7 | . . . . . 1 . . 2 . . . . 2 2 Communications Jammed 92 | . . . . . 75 . . . . . . 7 . 10 Distress Signals 92 | . . . . . 75 . . . . . . 7 . 10 Times Spotted 191 | . 22 16 1 . 17 15 3 27 2 3 6 24 10 45 Peak Tracking Total 22 | . 4 3 1 . 7 5 5 6 2 3 6 10 13 22 Tactical Retreats 22 | . . . . . . 6 . 2 1 . 1 5 . 7 Traps | -11 -10 -10 -7 -7 -5 -5 -5 -4 -4 -4 -3 -3 -3 -2 ------- Run | Yrd Mat Sub Rec Scr Fac Upp Upp Fac Upp Upp Res Qua Frg Res Traps Triggered 6 | . 2 1 . . . . . 1 . . . . 2 . Indirectly . | . . . . . . . . . . . . . . . Trap Hack Attempts . | . . . . . . . . . . . . . . . Triggered . | . . . . . . . . . . . . . . . Disarmed . | . . . . . . . . . . . . . . . Reprogrammed . | . . . . . . . . . . . . . . . Reused . | . . . . . . . . . . . . . . . Traps Extracted . | . . . . . . . . . . . . . . . Installed . | . . . . . . . . . . . . . . . Triggered . | . . . . . . . . . . . . . . . Machines | -11 -10 -10 -7 -7 -5 -5 -5 -4 -4 -4 -3 -3 -3 -2 ---------- Run | Yrd Mat Sub Rec Scr Fac Upp Upp Fac Upp Upp Res Qua Frg Res Machines Disabled 8 | . 2 3 . . . . . 1 . . . 2 . . Max in Single Turn 2 | . 2 1 . . . . . . . . . 1 . . Machines Repaired . | . . . . . . . . . . . . . . . Machines Dismantled . | . . . . . . . . . . . . . . . Machines Sabotaged . | . . . . . . . . . . . . . . . Overloaded Fab Kills . | . . . . . . . . . . . . . . . Hacking | -11 -10 -10 -7 -7 -5 -5 -5 -4 -4 -4 -3 -3 -3 -2 --------- Run | Yrd Mat Sub Rec Scr Fac Upp Upp Fac Upp Upp Res Qua Frg Res Machines Accessed 12 | . 1 2 . 5 . 1 . . . . . 2 . 1 Terminals 3 | . 1 . . . . 1 . . . . . 1 . . Fabricators . | . . . . . . . . . . . . . . . Repair Stations . | . . . . . . . . . . . . . . . Recycling Units . | . . . . . . . . . . . . . . . Scanalyzers 1 | . . . . . . . . . . . . 1 . . Garrison Access 1 | . . . . . . . . . . . . . . 1 Total Hacks 31 | . 5 5 . 9 . 5 . 1 . . . 4 . 2 Successful 22 | . 1 5 . 9 . 5 . . . . . 2 . . Failed 8 | . 3 . . . . . . 1 . . . 2 . 2 Catastrophic 1 | . . . . . . . . . . . . . . 1 Database Lockouts 1 | . 1 . . . . . . . . . . . . . Manual 6 | . 5 . . . . . . 1 . . . . . . Terminals 14 | . 5 . . . . 5 . 1 . . . 3 . . Fabricators . | . . . . . . . . . . . . . . . Repair Stations . | . . . . . . . . . . . . . . . Recycling Units . | . . . . . . . . . . . . . . . Scanalyzers 1 | . . . . . . . . . . . . 1 . . Garrison Access 2 | . . . . . . . . . . . . . . 2 Terminal Hacks 21 | . 1 5 . 9 . 5 . . . . . 1 . . Record 18 | . . 4 . 8 . 5 . . . . . 1 . . Robot Analysis 1 | . 1 . . . . . . . . . . . . . Proto ID Catalog 2 | . . 1 . 1 . . . . . . . . . . Fabricator Hacks . | . . . . . . . . . . . . . . . Repair Station Hacks . | . . . . . . . . . . . . . . . Recycling Unit Hacks . | . . . . . . . . . . . . . . . Scanalyzer 1 | . . . . . . . . . . . . 1 . . Retrieve Study 1 | . . . . . . . . . . . . 1 . . Garrison Access Hacks . | . . . . . . . . . . . . . . . Unauthorized Hacks . | . . . . . . . . . . . . . . . Terminals . | . . . . . . . . . . . . . . . Fabricators . | . . . . . . . . . . . . . . . Repair Stations . | . . . . . . . . . . . . . . . Recycling Units . | . . . . . . . . . . . . . . . Scanalyzers . | . . . . . . . . . . . . . . . Garrison Access . | . . . . . . . . . . . . . . . Data Cores Recovered . | . . . . . . . . . . . . . . . Used . | . . . . . . . . . . . . . . . Hacking Detections 3 | . 1 . . . . . . . . . . 1 . 1 Full Trace Events . | . . . . . . . . . . . . . . . Feedback Events . | . . . . . . . . . . . . . . . Feedback Blocked . | . . . . . . . . . . . . . . . Robot Schematics Acquired . | . . . . . . . . . . . . . . . Robots Built . | . . . . . . . . . . . . . . . Authchips . | . . . . . . . . . . . . . . . Time . | . . . . . . . . . . . . . . . Total Robot Build Rating . | . . . . . . . . . . . . . . . Part Schematics Acquired . | . . . . . . . . . . . . . . . Parts Built . | . . . . . . . . . . . . . . . Authchips . | . . . . . . . . . . . . . . . Time . | . . . . . . . . . . . . . . . Total Part Build Rating . | . . . . . . . . . . . . . . . Part Studies Acquired 1 | . . . . . . . . . . . . 1 . . Parts Repaired . | . . . . . . . . . . . . . . . Time . | . . . . . . . . . . . . . . . Parts Recycled . | . . . . . . . . . . . . . . . Recycled Matter . | . . . . . . . . . . . . . . . Retrieved Matter . | . . . . . . . . . . . . . . . Retrieved Components . | . . . . . . . . . . . . . . . Parts Scanalyzed . | . . . . . . . . . . . . . . . Part Schematics Acquired . | . . . . . . . . . . . . . . . Parts Damaged . | . . . . . . . . . . . . . . . Bothacking | -11 -10 -10 -7 -7 -5 -5 -5 -4 -4 -4 -3 -3 -3 -2 ------------ Run | Yrd Mat Sub Rec Scr Fac Upp Upp Fac Upp Upp Res Qua Frg Res Used RIF Installer . | . . . . . . . . . . . . . . . Robots Hacked . | . . . . . . . . . . . . . . . Non-combat . | . . . . . . . . . . . . . . . Combat . | . . . . . . . . . . . . . . . Robot Hacks Applied . | . . . . . . . . . . . . . . . Relay Couplers Released . | . . . . . . . . . . . . . . . Fabnet Peak Effective % . | . . . . . . . . . . . . . . . Robots Rewired . | . . . . . . . . . . . . . . . Allies Hacked . | . . . . . . . . . . . . . . . Hacks Repelled 2 | . . . . . . . . 2 . . . . . . Allies | -11 -10 -10 -7 -7 -5 -5 -5 -4 -4 -4 -3 -3 -3 -2 -------- Run | Yrd Mat Sub Rec Scr Fac Upp Upp Fac Upp Upp Res Qua Frg Res Total Allies 41 | . . 14 . . . . 5 10 8 4 . . . . Largest Group 10 | . . 10 7 5 5 . 5 5 4 3 . . . . Highest-Rated Group 346 | . . 191 134 96 96 . 346 346 324 243 . . . . Highest-Rated Ally 81 | . . 20 20 20 20 . 81 81 81 81 . . . . Initial UFD Resources 50 | . . . . . 39 39 39 43 43 43 47 47 47 50 Total Orders . | . . . . . . . . . . . . . . . Ally Attacks 242 | . . 76 22 . 11 . 7 112 7 7 . . . . Total Damage 7433 | . . 1092 463 . 217 . 988 3987 463 223 . . . . Kills 65 | . . 14 5 . 2 . 4 37 2 1 . . . . Allies Corrupted . | . . . . . . . . . . . . . . . Allies Melted . | . . . . . . . . . . . . . . . Intel | -11 -10 -10 -7 -7 -5 -5 -5 -4 -4 -4 -3 -3 -3 -2 ------- Run | Yrd Mat Sub Rec Scr Fac Upp Upp Fac Upp Upp Res Qua Frg Res Active Infowar (turns) 3998 | . . . . . 599 2652 . 171 . . . 462 33 81 Optics 3251 | . . . . . 599 2652 . . . . . . . . Sensors 480 | . . . . . . . . . . . . 447 33 . Terrain 618 | . . . . . 447 . . 171 . . . . . . Cloaking 191 | . . . . . . . . . . . . 159 32 . Jamming 910 | . . . . . 483 . . . . . . 346 . 81 Robot Analysis Total 1 | . 1 . . . . . . . . . . . . . Derelict Logs Recovered 6 | . . 3 . 2 . 1 . . . . . . . . Drone Launches . | . . . . . . . . . . . . . . . Drone Recoveries . | . . . . . . . . . . . . . . . Exploration | -11 -10 -10 -7 -7 -5 -5 -5 -4 -4 -4 -3 -3 -3 -2 ------------- Run | Yrd Mat Sub Rec Scr Fac Upp Upp Fac Upp Upp Res Qua Frg Res Turns Passed 18194 | 88 1300 5646 1691 1884 602 3050 357 1524 437 91 120 889 56 459 Spaces Moved 8431 | 50 450 2189 665 989 229 1030 110 525 332 124 201 958 78 501 Core 570 | 7 . . . . . . . 4 193 89 36 3 7 231 Treads 6142 | 43 450 2189 665 989 229 1030 110 437 . . . . . . Legs . | . . . . . . . . . . . . . . . Wheels . | . . . . . . . . . . . . . . . Hover 1449 | . . . . . . . . 84 139 35 165 955 71 . Flight 270 | . . . . . . . . . . . . . . 270 Fastest Speed 39 | 50 160 240 250 160 160 240 320 50 50 50 50 52 50 39 Average Speed 198 | 144 225 246 250 188 203 285 320 257 54 51 58 78 59 88 Slowest Speed 1300 | 160 240 250 250 250 246 320 320 1300 200 60 60 900 60 1000 Overloaded Moves . | . . . . . . . . . . . . . . . Propulsion Burnouts . | . . . . . . . . . . . . . . . Robots Hopped 18 | . . . . . . . . . . . . . . 18 Potential Cave-ins 2 | . . 2 . . . . . . . . . . . . Cave-ins Triggered . | . . . . . . . . . . . . . . . Exploration Rate (%) 42 | 3 75 96 99 78 4 87 16 18 47 19 8 61 6 20 Regions Visited 14 Branch Regions 9 Pre-discovered Areas 2 | . . 2 . . . . . . . . . . . . Known Exits Taken 2 | . . . . . . . . 1 . . . 1 . . Unknown Exits Taken 12 | 1 1 1 1 1 1 1 1 . 1 1 1 . 1 . Scrap Searched 13 | . . 8 . 2 . 2 . . 1 . . . . . Spaces Dug 12 | . . 12 . . . . . . . . . . . . Terrain Destroyed 187 | . 42 12 . . 9 100 . 9 12 . . 3 . . Melee 12 | . . 12 . . . . . . . . . . . . Projectile 11 | . . . . . 2 2 . 4 . . . 3 . . AOE 163 | . 42 . . . 6 98 . 5 12 . . . . . Terrain Rammed . | . . . . . . . . . . . . . . . Walls Destroyed . | . . . . . . . . . . . . . . . Machines Disabled . | . . . . . . . . . . . . . . . Actions | -11 -10 -10 -7 -7 -5 -5 -5 -4 -4 -4 -3 -3 -3 -2 --------- Run | Yrd Mat Sub Rec Scr Fac Upp Upp Fac Upp Upp Res Qua Frg Res Total 9459 | 61 670 2366 690 1009 304 1087 116 624 551 140 203 1055 88 495 Wait 562 | . 163 91 15 . 24 21 6 24 193 6 . 19 . . Move 8389 | 49 449 2188 664 988 228 1029 109 524 331 123 200 957 77 473 Hop 10 | . . . . . . . . . . . . . . 10 Pick Up 32 | 2 10 6 3 7 1 2 . . . . . 1 . . Fast Attach 87 | 5 4 1 . 2 5 2 1 22 10 1 2 25 . 7 Attach 18 | 1 1 . . . 12 2 . 2 . . . . . . Detach 14 | . 1 . . . 3 1 . 4 . 1 1 2 . 1 Swap 31 | . 5 10 1 3 3 4 . 4 . . . 1 . . Drop 38 | . 3 2 3 9 3 . . 2 . 3 . 9 2 2 Fire 177 | . 32 6 . . 25 25 . 40 10 6 . 33 . . Melee 70 | . . 62 . . . 1 . . 7 . . . . . Ram 6 | . . . . . . . . 1 . . . 1 2 2 Kick . | . . . . . . . . . . . . . . . Crush 11 | 4 2 . 4 . . . . 1 . . . . . . Escape Stasis 14 | . . . . . . . . . . . . 7 7 . Rewire . | . . . . . . . . . . . . . . . Trap . | . . . . . . . . . . . . . . . Miscellaneous . | . . . . . . . . . . . . . . . Route ------- -11/Scrapyard -10/Materials (discovered 4 exits: [*Mat x2] / [*Min] / *Sub) -10/Subcaves (discovered 3 exits: [*Mat x2] / [*Rec]) -7/Recycling (discovered 2 exits: [*Fac] / *Scr) -7/Scraptown -5/Factory -5/Upper Caves -5/Upper Caves -4/Factory -4/Upper Caves -4/Upper Caves -3/Research -3/Quarantine (discovered 2 exits: *Sec / *Frg) -3/Protoforge -2/Research History --------- Turn | Location | Event 2 | -11/Scrapyard | Met Revision 17 8 | -11/Scrapyard | Discovered new exit (range 14) 89 | -11/Scrapyard | Entered Materials 303 | -10/Materials | Build established: Mutant 397 | -10/Materials | Discovered new exit (range 3) 666 | -10/Materials | Central database locked down 797 | -10/Materials | Discovered new exit (range 11) 1197 | -10/Materials | Discovered new exit (range 16) 1371 | -10/Materials | Discovered new exit (range 7) 1389 | -10/Materials | Entered Subcaves 1390 | -10/Subcaves | Shifting Twisted Machinery released Mak. Spear 1393 | -10/Subcaves | Shifting Twisted Machinery released Mak. Shrapnel Gun 1516 | -10/Subcaves | Discovered new exit (range 14) 1538 | -10/Subcaves | Learned location of Zion (-7) 1538 | -10/Subcaves | Met a Zionite searching for "candidates" 1912 | -10/Subcaves | Visited triangular shrine 1926 | -10/Subcaves | Found Prototype Device 1926 | -10/Subcaves | Identified V3-11A's Pendant 1931 | -10/Subcaves | Befriended Subdweller 2291 | -10/Subcaves | Befriended Subdweller 2291 | -10/Subcaves | Befriended Subdweller 2401 | -10/Subcaves | Befriended Subdweller 2909 | -10/Subcaves | Disturbed a concealed Subdweller 2911 | -10/Subcaves | Befriended Subdweller 3116 | -10/Subcaves | A swath of the cavern ceiling suddenly collapsed 3353 | -10/Subcaves | Shifting Twisted Machinery released Sub. Machine Gun 3353 | -10/Subcaves | Shifting Twisted Machinery released Spk. Treads 3436 | -10/Subcaves | Befriended Subdweller 3479 | -10/Subcaves | A Subdweller sparked back to life 3481 | -10/Subcaves | Befriended Subdweller 3483 | -10/Subcaves | Learned Materials emergency access door positions 3486 | -10/Subcaves | Befriended Subdweller 3498 | -10/Subcaves | A Subdweller sparked back to life 3662 | -10/Subcaves | Shifting Twisted Machinery released Ripper 3670 | -10/Subcaves | Shifting Twisted Machinery released Battle Cannon 3671 | -10/Subcaves | Build established: Derelict-Mutant 3844 | -10/Subcaves | Visited Clippyterm 3852 | -10/Subcaves | Learned Research machine intel 3911 | -10/Subcaves | Befriended Subdweller 3921 | -10/Subcaves | Befriended Subdweller 3921 | -10/Subcaves | Befriended Subdweller 3922 | -10/Subcaves | Discovered new exit (range 14) 3956 | -10/Subcaves | Befriended Subdweller 3991 | -10/Subcaves | Befriended Subdweller 4232 | -10/Subcaves | Visited 4L-MR0's lab 4271 | -10/Subcaves | Found Meta Core 4272 | -10/Subcaves | Attached Meta Core, gained temporary slots: Propulsion, Utility, Weapon 4577 | -10/Subcaves | Build established: Mutant 4592 | -10/Subcaves | A swath of the cavern ceiling suddenly collapsed 5157 | -10/Subcaves | Learned 2 Materials zone layouts 5357 | -10/Subcaves | Discovered new exit (range 12) 5744 | -10/Subcaves | Befriended Subdweller 5811 | -10/Subcaves | Build established: Derelict-Mutant 7035 | -10/Subcaves | Entered Recycling 7035 | -7/Recycling | Accompanied by 7 allies 7321 | -7/Recycling | Core integrity fell below 50% 7358 | -7/Recycling | Build established: Mutant 7996 | -7/Recycling | Discovered new exit (range 7) 8636 | -7/Recycling | Scanned before Scraplab entrance 8674 | -7/Recycling | Entered Scraplab 8721 | -7/Recycling | Discovered new exit (range 2) 8726 | -7/Recycling | Entered Scraptown 8726 | -7/Scraptown | Accompanied by 5 allies 8726 | -7/Scraptown | System corruption cleaned by C-Scrubber 9061 | -7/Scraptown | Visited IN-MT5's Study 9141 | -7/Scraptown | Visited Fellowship of the Rings 9366 | -7/Scraptown | Delivered V3-11A's Pendant to T0-NE2 in exchange for information 9649 | -7/Scraptown | Scanned Subdweller tech in exchange for log data 9655 | -7/Scraptown | Learned Research stockpile data 9657 | -7/Scraptown | Learned Factory stockpile data 9732 | -7/Scraptown | Visited UFD Registry 9732 | -7/Scraptown | Registered with UFD as "Roughcoil" 9779 | -7/Scraptown | Visited Science Testing Area 9801 | -7/Scraptown | Visited Sword Containment 9838 | -7/Scraptown | Visited Curators Association 9886 | -7/Scraptown | Delivered Scrap Shield to a Scientist 10068 | -7/Scraptown | Visited Scrap Suit Storage 10083 | -7/Scraptown | Found Scrap Suit 10135 | -7/Scraptown | Visited Supply Room 10176 | -7/Scraptown | Visited Supply Room 10239 | -7/Scraptown | Visited Abandonware Association 10261 | -7/Scraptown | Learned abandonware demo "MELTYB.EXE" 10300 | -7/Scraptown | Visited Junk Repository 10359 | -7/Scraptown | Visited Science Guys 10597 | -7/Scraptown | Discovered new exit (range 5) 10610 | -7/Scraptown | Entered Factory 10610 | -5/Factory | Accompanied by 5 allies 10610 | -5/Factory | Evolved 10 slots: Power x1, Propulsion x1, Utility x7, Weapon x1 10620 | -5/Factory | Discovered new exit (range 7) 10915 | -5/Factory | Build established: Derelict-Skirmisher 11088 | -5/Factory | System corruption reached 10% 11118 | -5/Factory | Lost 5 parts (1p1n2u1w) 11212 | -5/Factory | Entered Upper Caves 11214 | -5/Upper Caves | UFD Scientist delivered a prototype 11235 | -5/Upper Caves | Found Prototype Protection 11235 | -5/Upper Caves | Identified Enh. Scrap Shield 11439 | -5/Upper Caves | Learned 4 Factory zone layouts 11442 | -5/Upper Caves | Encountered a Warlord checkpoint 11645 | -5/Upper Caves | Build established: Derelict-Tank 12051 | -5/Upper Caves | Attracted the attention of an 0b10 checkpoint 12315 | -5/Upper Caves | Build established: Tank 12339 | -5/Upper Caves | Spotted B-75 Beast 12379 | -5/Upper Caves | Destroyed B-75 Beast 12406 | -5/Upper Caves | Lost 5 parts (1n2u2w) 12659 | -5/Upper Caves | Build established: Mutant 13737 | -5/Upper Caves | Attracted the attention of an 0b10 base 13784 | -5/Upper Caves | Destroyed 7 combat bots 13791 | -5/Upper Caves | Lost 3 parts (1p1n1u) 13801 | -5/Upper Caves | Learned location of 1 exit from Factory 13801 | -5/Upper Caves | Learned 6 Proximity Caves zone layouts 13801 | -5/Upper Caves | Learned Extension trap positions 14211 | -5/Upper Caves | Discovered new exit (range 9) 14262 | -5/Upper Caves | Entered another Upper Caves area 14347 | -5/Upper Caves | Prototype Device suddenly appears! 14374 | -5/Upper Caves | Found Prototype Device 14374 | -5/Upper Caves | Identified Amulet of Y3-NDR 14389 | -5/Upper Caves | Joined by bewildered Wizard 14389 | -5/Upper Caves | Joined by bewildered Wizard 14423 | -5/Upper Caves | Joined by bewildered Wizard 14424 | -5/Upper Caves | Joined by bewildered Wizard 14516 | -5/Upper Caves | Discovered new exit (range 14) 14619 | -5/Upper Caves | Entered Factory 14619 | -4/Factory | Accompanied by 5 allies 14619 | -4/Factory | Evolved 2 slots: Utility x1, Weapon x1 14620 | -4/Factory | Identified exit to Upper Caves 14897 | -4/Factory | Build established: Tank 15030 | -4/Factory | Joined by bewildered Wizard 15117 | -4/Factory | P-70 Sage assimilated allied G-50 Soldier 15126 | -4/Factory | Joined by bewildered Wizard 15128 | -4/Factory | Joined by bewildered Wizard 15128 | -4/Factory | Joined by bewildered Wizard 15139 | -4/Factory | Lost 3 allies 15404 | -4/Factory | Build established: Hacker-Tank 15717 | -4/Factory | System corruption reached 10% 15725 | -4/Factory | Lost 4 allies 15740 | -4/Factory | Joined by bewildered Wizard 15741 | -4/Factory | Joined by bewildered Wizard 15742 | -4/Factory | Joined by bewildered Wizard 15753 | -4/Factory | Joined by bewildered Wizard 15762 | -4/Factory | Lost 7 parts (2n3u2w) 15787 | -4/Factory | Joined by bewildered Wizard 15835 | -4/Factory | Joined by bewildered Wizard 16014 | -4/Factory | Lost 4 allies 16078 | -4/Factory | System corruption reached 30% 16108 | -4/Factory | Lost 10 parts (4p3u3w) 16125 | -4/Factory | Core integrity fell below 50% 16143 | -4/Factory | Entered Upper Caves 16178 | -4/Upper Caves | Lost 7 parts (2n4u1w) 16194 | -4/Upper Caves | Joined by bewildered Wizard 16195 | -4/Upper Caves | Joined by bewildered Wizard 16196 | -4/Upper Caves | Joined by bewildered Wizard 16235 | -4/Upper Caves | Joined by bewildered Wizard 16331 | -4/Upper Caves | Joined by bewildered Wizard 16552 | -4/Upper Caves | Build established: Scavenger-Mutant 16572 | -4/Upper Caves | Discovered new exit (range 14) 16580 | -4/Upper Caves | Entered another Upper Caves area 16623 | -4/Upper Caves | Joined by bewildered Wizard 16624 | -4/Upper Caves | Joined by bewildered Wizard 16624 | -4/Upper Caves | Joined by bewildered Wizard 16628 | -4/Upper Caves | Core integrity fell below 20% 16630 | -4/Upper Caves | Released all parts (2) 16661 | -4/Upper Caves | Lost 7 parts (3n2u2w) 16667 | -4/Upper Caves | Discovered new exit (range 9) 16671 | -4/Upper Caves | Entered Research 16671 | -3/Research | Evolved 2 slots: Propulsion x2 16673 | -3/Research | Loaded intel: 108 machine locations 16788 | -3/Research | Discovered new exit (range 6) 16791 | -3/Research | Entered Quarantine 16931 | -3/Quarantine | Build established: Mutant 16951 | -3/Quarantine | Found Alien Artifact 16951 | -3/Quarantine | Identified Phase Armor 17481 | -3/Quarantine | Found Prototype Device 17481 | -3/Quarantine | Identified Exp. Thermal Shield 17570 | -3/Quarantine | Scanned by Researcher 17576 | -3/Quarantine | Build established: Scavenger-Gunner 17628 | -3/Quarantine | Spotted Fortress 17673 | -3/Quarantine | Discovered new exit (range 6) 17673 | -3/Quarantine | Discovered new exit (range 6) 17676 | -3/Quarantine | Identified exit to Protoforge 17677 | -3/Quarantine | Identified exit to Section 7 17680 | -3/Quarantine | Entered Protoforge 17690 | -3/Protoforge | Spotted B-86 Titan 17692 | -3/Protoforge | Superfortress began startup sequence 17697 | -3/Protoforge | Lost 8 parts (2n2u4w) 17728 | -3/Protoforge | Discovered new exit (range 16) 17733 | -3/Protoforge | Spotted Hotshot 17733 | -3/Protoforge | Spotted Hotshot 17733 | -3/Protoforge | Released all parts (4) 17735 | -3/Protoforge | Spotted Hotshot 17736 | -3/Protoforge | Entered Research 17736 | -2/Research | Evolved 2 slots: Power x1, Propulsion x1 17941 | -2/Research | Build established: Mutant 18147 | -2/Research | Released all parts (2) 18156 | -2/Research | Core integrity fell below 50% 18177 | -2/Research | Lost 3 parts (2p1n) 18182 | -2/Research | Core integrity fell below 20% 18184 | -2/Research | Spotted B-90 Cyclops 18195 | -2/Research | Destroyed by C-57 Dissector with Dual-blade Saw Last Messages --------------- reinforcements to area. 18149_ Penetrated by Slug. 18149_ Slug penetrates Garrison Access. 18150_ Slammed into P-80 Master. 18155_ Knocked back. 18155_ K-01 Serf destroyed. 18155_ W-44 Eye knocked back. 18155_ P-80 Master knocked back. 18155_ Penetrated by Slug. 18161_ ALERT: Potential suspicious activity detected, Programmers report to Research Zone 3K. 18165_ Knocked back. 18165_ K-01 Serf knocked back. 18165_ W-44 Eye system corrupted by crushing effect. 18165_ K-01 Serf knocked back. 18165_ C-57 Dissector knocked back. 18166_ W-44 Eye system terminally corrupted. 18166_ K-01 Serf collects debris. 18191_ ALERT: Hostiles spotted, dispatching reinforcements to Terminal R009. Map ----- +----------------------------------------------------+ | ?????????????????????????????????????????????????? | | ?????????????????????????????????????????????????? | | ?????????????????????????????????????????????????? | | ?????????????????????????????????????????????????? | | ?????????????????????????????????????????????????? | | ?????????????????????????????????????????????????? | | ?????????????????????????????????????????????????? | | ?????????????????????????????????????????????????? | | ?????????????????????????????????????????????????? | | ?????????????????????????????????????????????????? | | ?????????????????????????????????????????????????? | | ?????????????????????????????????????????????????? | | ?????????????????????????????????????????????????? | | ?????????????????????????????????????????????????? | | ?????????????????????????????????????????????????? | | ?????????????????????????????????????????????????? | | ?????????????????????????????????????????????????? | | ?????????????????????????????????????????????????? | | ????????????????????????????#+#??????????????????? | | ????????????????????????????# ##??##??????#??????? | | ????????????????????????????# "###"###### #??????? | | ????????????????????????????# ##?????? | | ????????????????????????????# ""?????? | | ????????????????????#+####### ???????? | | ????????????????????# # """ Y"?????? | | ????????????????????# @c + """ ""?????? | | ????????????????????# #### """ ""#????? | | ????????????????????# #??# #??????? | | ????????????????????# #?## = = #??????? | | ????????????####+##############" ##?????? | | ????????????# ?? | | ????????????# =! ?? | | ????????????# =! H ??? | | ????????????# ! ??? | | ????????????# #############+#### #### #???? | | ????????????# #????????????????? #???? #???? | | ????????????# #?????????????????###????? #???? | | ????????????# + ??????????????????????????????? | | ????????????# # "????????????????????????????? | | ????????????# # "" ??????????????????????????? | | ????????????# #? "Y ?????????????????????????? | | ????????????# #??"" ??????????????????????????? | | ????????????# #??"" ??????????????????????????? | | ????????????# #???????????????????????????????? | | ????????????+ #???????????????????????????????? | | ??????????? # #???????????????????????????????? | | ?????????? # #???????????????????????????????? | | ?????????? ?# #???????????????????????????????? | | ????????? ?# #???????????????????????????????? | | ????????##??# #???????????????????????????????? | +----------------------------------------------------+ Best States ------------- Heat Dissipation 65 Energy Generation 65 Energy Capacity 850 Matter Stores 347 Matter Capacity 500 Sight Range 20 Robot Scan Range 16 Terrain Scan Range 24 Terrain Scan Density 135 Jamming Range 16 Cloak Strength 2 Power Amplification 40 Armor Coverage 1125 Core Shielding 20 Evasion (%) 62 Target Analysis 12 Recoil Reduction 4 Offensive Hacking 70 Defensive Hacking 22 Authchip Count 1 Item Schematics ----------------- None Robot Schematics ------------------ None Fabricated ------------ Nothing Repaired ---------- Nothing Studied --------- Antigrav Array | -3/Quarantine | Hacked Alien Tech Used ----------------- Phase Armor Achievements -------------- Alien Tech I Laugh At Your Crits Loot Taster Nope Rockin' Loadout Rodney's Helpers Super-what Now? Tailor-made Total Silence Challenges ------------ None Game ------ Seed StorageShockboltCyclogen Manual? 0 Play Time 01:22:32 Cumulative 63.8 hours Start 2026.02.12 @ 14:07:32 End 2026.02.12 @ 15:34:15 Sessions 1 Manual Loads 0 Difficulty Rogue Special Mode None Game No. 135 Rogue 135 Adventurer 0 Explorer 0 Win Type - Total 0 Types 0/0/0/0/0/0/0/0/0/0 Lore% 41 Gallery% 33 Achievement% 32 Wizard Run 0 Options --------- Layout 0 ASCII 0 Keyboard 1 Movement Arrows Keybinds 0 Fullscreen 1 Font 18/Smallcaps Map View 76x50 Zoom Use 68% Tactical HUD 1 Map Filters NONE Filters NONE Steam 1 RUN: d36443b6-2342-4d73-94d5-9196e2ffb65b